bitfinex/quotes_BTCUSD_20241025
["timestamp","ask_amount","ask_price","bid_price","bid_amount"]
[1729847018583,0.000824,67635.0,67634.0,0.54682829]
[1729847019690,0.000824,67635.0,67634.0,0.66099036]
[1729847019899,0.000824,67635.0,67634.0,0.74996944]
[1729847020052,0.000824,67635.0,67634.0,0.64580737]
[1729847020218,0.000824,67635.0,67634.0,0.63841175]
[1729847020426,0.000824,67635.0,67634.0,0.64942993]
[1729847020702,0.000824,67635.0,67634.0,0.87799396]
[1729847021028,0.000824,67635.0,67634.0,0.64942993]
[1729847023274,0.000824,67635.0,67634.0,0.69347697]
[1729847023677,0.000824,67635.0,67634.0,0.68347697]
[1729847023890,0.000824,67635.0,67634.0,0.69347697]
[1729847024092,0.000824,67635.0,67634.0,0.64942993]
[1729847024729,0.000824,67635.0,67634.0,0.71550049]
[1729847025147,0.000824,67635.0,67634.0,0.87814916]
[1729847025349,0.000824,67635.0,67634.0,0.88554449]
[1729847026476,0.000824,67635.0,67634.0,0.72289582]
[1729847026911,0.000824,67643.0,67642.0,0.02168368]
[1729847027121,0.000824,67643.0,67642.0,0.66297831]
[1729847027332,0.000824,67643.0,67642.0,0.66002233]
[1729847027746,0.000824,67643.0,67642.0,0.89056541]
[1729847027940,0.000824,67643.0,67642.0,0.82453039]
[1729847028209,1e-06,67644.0,67643.0,0.03168368]
[1729847028403,1e-06,67644.0,67643.0,0.81230287]
[1729847028650,1e-06,67644.0,67643.0,0.94141719]
[1729847028823,1e-06,67644.0,67643.0,0.95243537]
[1729847029272,1e-06,67644.0,67643.0,0.81096999]
[1729847029471,0.000865,67646.0,67645.0,0.30051368]
[1729847029587,0.000865,67646.0,67645.0,1.00829013]
[1729847030207,0.000865,67646.0,67645.0,1.00366787]
[1729847030418,0.000865,67646.0,67645.0,1.1134983]
[1729847030624,0.000865,67646.0,67645.0,0.99727042]
[1729847031492,0.000865,67646.0,67645.0,1.10705453]
[1729847031761,0.000865,67646.0,67645.0,1.1144477]
[1729847032166,0.000865,67646.0,67645.0,1.12503032]
[1729847032460,0.000865,67646.0,67645.0,1.10304455]
[1729847032608,0.000865,67646.0,67645.0,0.99888248]
[1729847032818,0.000865,67646.0,67645.0,0.91108133]
[1729847033019,0.000865,67646.0,67645.0,0.9769375]
[1729847033426,0.000865,67646.0,67645.0,0.80384963]
[1729847033631,0.000865,67646.0,67645.0,0.73337273]
[1729847033806,0.000865,67646.0,67645.0,0.72597956]
[1729847034580,0.000865,67646.0,67645.0,0.87402723]
[1729847034988,0.000865,67646.0,67645.0,0.83014163]
[1729847035692,0.000865,67646.0,67645.0,0.83214163]
[1729847035888,0.000865,67646.0,67645.0,1.47441352]
[1729847036092,0.000865,67646.0,67645.0,1.47641352]
[1729847036307,0.000865,67646.0,67645.0,1.42738898]
[1729847036981,0.000865,67646.0,67645.0,1.42538898]
[1729847037398,0.000865,67646.0,67645.0,1.44178744]
[1729847037638,0.000865,67646.0,67645.0,1.33762537]
[1729847037861,0.22144961,67659.0,67649.0,0.02968368]
[1729847038099,0.22144961,67659.0,67649.0,0.8983603]
[1729847038383,0.22144961,67659.0,67649.0,1.76618512]
[1729847038594,0.22144961,67659.0,67649.0,1.85385169]
[1729847039270,0.22144961,67659.0,67649.0,1.51984612]
[1729847039498,0.22144961,67659.0,67649.0,1.06688938]
[1729847039945,0.22144961,67659.0,67649.0,1.11071449]
[1729847040172,0.22144961,67659.0,67654.0,0.45150257]
[1729847040401,0.22144961,67659.0,67654.0,0.69520638]
[1729847042319,0.22144961,67659.0,67654.0,0.77480638]
[1729847042824,0.22144961,67659.0,67654.0,0.62379749]
[1729847043053,0.22144961,67659.0,67654.0,0.77680638]
[1729847043300,0.22144961,67659.0,67654.0,0.78776161]
[1729847043803,0.22144961,67659.0,67654.0,0.78576161]
[1729847044042,0.22144961,67659.0,67654.0,0.79777398]
[1729847046229,0.22144961,67659.0,67654.0,0.79671205]
[1729847046470,0.22144961,67659.0,67654.0,0.78575682]
[1729847046702,0.22144961,67659.0,67654.0,0.63474793]
[1729847046966,0.22144961,67659.0,67654.0,0.78575682]
[1729847048174,0.000824,67660.0,67654.0,0.79037697]
[1729847048576,0.000824,67660.0,67654.0,0.79237697]
[1729847048842,0.000824,67660.0,67654.0,0.79037697]
[1729847049043,0.000824,67660.0,67654.0,0.79776921]
[1729847049247,0.000824,67660.0,67654.0,0.79037697]
[1729847049485,0.000824,67660.0,67654.0,0.79776921]
[1729847049902,0.000824,67660.0,67654.0,0.78775682]
[1729847050106,0.000824,67660.0,67654.0,0.77942637]
[1729847050317,0.000824,67660.0,67654.0,0.79143833]
[1729847050540,0.000824,67660.0,67654.0,0.77480638]
[1729847050783,0.000824,67660.0,67654.0,0.78681834]
[1729847053954,0.000824,67660.0,67654.0,0.78219839]
[1729847054177,0.000824,67660.0,67654.0,0.78681839]
[1729847055244,0.000824,67660.0,67654.0,1.91630339]
[1729847055447,0.000824,67660.0,67654.0,2.09943639]
[1729847056314,0.000824,67660.0,67654.0,1.71942639]
[1729847056742,0.000824,67660.0,67654.0,1.16957939]
[1729847058485,0.000824,67660.0,67654.0,1.12262863]
[1729847058720,0.000824,67660.0,67654.0,1.12462863]
[1729847058927,0.000824,67660.0,67654.0,1.12262863]
[1729847060656,0.000824,67660.0,67659.0,0.17748268]
[1729847060872,0.000824,67660.0,67659.0,0.56705651]
[1729847061306,0.000824,67660.0,67659.0,0.56705649]
[1729847061502,0.000824,67672.0,67671.0,0.47535668]
[1729847061623,0.22227361,67672.0,67671.0,0.74393049]
[1729847062246,0.22227361,67672.0,67671.0,0.66533049]
[1729847062247,0.000824,67672.0,67671.0,0.66533049]
[1729847063678,0.000824,67672.0,67671.0,0.66333049]
[1729847064461,0.000824,67672.0,67671.0,0.71223043]
[1729847065296,0.000824,67672.0,67671.0,0.71023043]
[1729847067891,0.000824,67672.0,67671.0,0.730854]
[1729847070970,0.000824,67672.0,67671.0,1.71624613]
[1729847070971,1e-06,67672.0,67671.0,1.71624613]
[1729847071179,1e-06,67672.0,67671.0,1.89995322]
[1729847071383,1e-06,67672.0,67671.0,1.91983927]
[1729847071821,1e-06,67672.0,67671.0,1.832215]
[1729847072055,1e-06,67675.0,67674.0,0.02968368]
[1729847072282,1e-06,67675.0,67674.0,2.09268504]
[1729847072475,1e-06,67675.0,67674.0,2.26193725]
[1729847072708,1e-06,67675.0,67674.0,2.25993725]
[1729847072977,1e-06,67676.0,67675.0,0.30044868]
[1729847073226,1e-06,67676.0,67675.0,3.42126511]
[1729847073459,1e-06,67676.0,67675.0,3.35361216]
[1729847074114,1e-06,67676.0,67675.0,3.4193772]
[1729847074324,1e-06,67676.0,67675.0,3.35361216]
[1729847074745,1e-06,67676.0,67675.0,2.81112016]
[1729847075167,1e-06,67676.0,67675.0,2.8768852]
[1729847075606,1e-06,67676.0,67675.0,2.87688509]
[1729847075815,1e-06,67676.0,67675.0,2.89878162]
[1729847076232,1e-06,67676.0,67675.0,2.81112005]
[1729847076443,1e-06,67676.0,67675.0,2.89878162]
[1729847076678,1e-06,67676.0,67675.0,2.81112005]
[1729847078510,1e-06,67676.0,67675.0,3.45049605]
[1729847079181,1e-06,67676.0,67675.0,3.43856243]
[1729847079411,1e-06,67676.0,67675.0,3.33889447]
[1729847079621,1e-06,67676.0,67675.0,3.50186033]
[1729847079839,1e-06,67676.0,67675.0,3.35090226]
[1729847080458,0.17613178,67681.0,67680.0,0.27743768]
[1729847080673,0.17613178,67681.0,67680.0,0.63879958]
[1729847080886,0.0759,67692.0,67682.0,0.30043268]
[1729847081098,0.0759,67692.0,67682.0,0.46294428]
[1729847081343,0.0759,67692.0,67682.0,0.46443398]
[1729847081974,0.0759,67692.0,67682.0,0.46643398]
[1729847082387,0.000837,67703.0,67682.0,0.46643398]
[1729847082619,0.29774961,67696.0,67682.0,0.63893398]
[1729847082826,0.29774961,67696.0,67682.0,0.65498783]
[1729847083238,0.29774961,67696.0,67682.0,0.6300548]
[1729847083446,0.29774961,67696.0,67682.0,0.6374441]
[1729847083665,0.29774961,67696.0,67682.0,0.6354441]
[1729847083894,0.29774961,67696.0,67682.0,0.65498901]
[1729847084550,0.29774961,67696.0,67682.0,0.65298901]
[1729847084962,0.29774961,67696.0,67682.0,0.65498901]
[1729847085192,0.29774961,67696.0,67682.0,0.65298901]
[1729847085602,0.29774961,67696.0,67682.0,0.65498901]
[1729847085799,0.29774961,67696.0,67682.0,0.67529434]
[1729847086222,0.29774961,67696.0,67682.0,0.67329434]
[1729847086442,0.22144961,67695.0,67682.0,0.88124602]
[1729847086647,0.22144961,67695.0,67682.0,0.82310263]
[1729847086858,0.22144961,67695.0,67682.0,0.77727018]
[1729847087960,0.22144961,67695.0,67682.0,0.88124602]
[1729847088158,0.22144961,67695.0,67682.0,0.8210875]
[1729847088358,0.22144961,67695.0,67682.0,0.77927018]
[1729847088563,0.22144961,67695.0,67682.0,0.88324602]
[1729847088738,0.22144961,67695.0,67682.0,0.77927018]
[1729847088976,0.22144961,67695.0,67682.0,0.88324602]
[1729847089179,0.22144961,67695.0,67682.0,0.88124602]
[1729847089385,0.22144961,67695.0,67682.0,0.77727018]
[1729847089558,0.22144961,67695.0,67682.0,0.84298857]
[1729847090060,0.22144961,67695.0,67682.0,0.77727018]
[1729847090299,0.22144961,67695.0,67682.0,0.77927018]
[1729847090524,0.22144961,67695.0,67694.0,0.16940668]
[1729847090723,0.22144961,67695.0,67694.0,0.46184793]
[1729847090931,0.22144961,67695.0,67694.0,0.45889394]
[1729847091137,0.22144961,67702.0,67701.0,0.157708]
[1729847091367,0.22144961,67702.0,67701.0,0.45687894]
[1729847091791,0.000837,67703.0,67702.0,0.180706]
[1729847092007,0.000837,67703.0,67702.0,0.3529011]
[1729847094428,0.000837,67703.0,67702.0,0.34089349]
[1729847094738,0.000837,67703.0,67702.0,0.34551112]
[1729847094924,0.000837,67703.0,67702.0,0.35751694]
[1729847096741,0.000837,67703.0,67702.0,0.3783306]
[1729847098694,0.000837,67703.0,67702.0,0.36632478]
[1729847098905,0.000837,67703.0,67702.0,0.37833056]
[1729847099109,0.000837,67703.0,67702.0,0.37371293]
[1729847100141,0.094837,67703.0,67702.0,0.17439546]
[1729847100398,0.171537,67703.0,67702.0,0.17439546]
[1729847101456,0.171537,67703.0,67702.0,0.19739546]
[1729847102523,0.171537,67703.0,67702.0,0.17439658]
[1729847103943,0.171537,67703.0,67702.0,0.1647129]
[1729847104196,0.171537,67703.0,67702.0,0.17439658]
[1729847109310,0.27551284,67703.0,67702.0,0.1647129]
[1729847109543,0.171537,67703.0,67702.0,0.1647129]
[1729847109765,0.171537,67703.0,67702.0,0.16471313]
[1729847109997,0.171537,67703.0,67702.0,0.152706]
[1729847110208,0.171537,67703.0,67702.0,0.15732455]
[1729847110632,0.27551284,67703.0,67702.0,0.15732455]
[1729847111052,0.27551284,67703.0,67702.0,0.15232455]
[1729847111267,0.27551284,67703.0,67702.0,0.00461855]
[1729847111862,0.172,67702.0,67700.0,0.00468368]
[1729847112102,0.10481284,67703.0,67700.0,0.15739368]
[1729847112103,0.172,67701.0,67700.0,0.15739368]
[1729847112321,0.172,67701.0,67700.0,0.16201228]
[1729847113863,0.172,67701.0,67700.0,0.15739368]
[1729847114137,0.172,67701.0,67700.0,0.16201229]
[1729847122425,0.0778,67701.0,67700.0,0.16201229]
[1729847122642,0.000837,67703.0,67702.0,0.15738968]
[1729847122846,0.000837,67703.0,67702.0,0.18538968]
[1729847123055,0.000837,67703.0,67702.0,0.19739711]
[1729847123674,0.000837,67703.0,67702.0,0.34790092]
[1729847123882,0.000837,67703.0,67702.0,0.35290092]
[1729847125622,0.000837,67703.0,67702.0,0.46887676]
[1729847125852,0.000837,67703.0,67702.0,0.85671037]
[1729847126077,0.000837,67711.0,67710.0,0.16737168]
[1729847126286,0.000837,67711.0,67710.0,0.35288292]
[1729847127353,0.000837,67711.0,67710.0,0.19237911]
[1729847127558,0.000837,67711.0,67710.0,0.19737911]
[1729847128210,0.000837,67711.0,67710.0,0.17437911]
[1729847128407,0.10481284,67711.0,67710.0,0.16469543]
[1729847128607,0.18731284,67711.0,67710.0,0.17437911]
[1729847130430,0.18731284,67711.0,67710.0,0.16698995]
[1729847130632,0.18731284,67711.0,67710.0,0.17437911]
[1729847130835,0.18731284,67711.0,67710.0,0.16698995]
[1729847131070,0.18731284,67711.0,67710.0,0.17437911]
[1729847131299,0.18731284,67711.0,67710.0,0.16698995]
[1729847133405,0.18731284,67711.0,67710.0,0.15730627]
[1729847134017,0.18731284,67711.0,67710.0,0.16698995]
[1729847135104,0.083337,67711.0,67710.0,0.16698995]
[1729847136676,0.083337,67711.0,67710.0,0.16698915]
[1729847137679,0.000837,67711.0,67710.0,0.16698915]
[1729847141603,0.000837,67711.0,67710.0,0.16198915]
[1729847141838,0.091637,67711.0,67710.0,0.16198915]
[1729847142079,0.170337,67711.0,67710.0,0.16198915]
[1729847142575,0.170337,67711.0,67710.0,0.16698915]
[1729847142802,0.170337,67711.0,67710.0,0.00461747]
[1729847143048,0.170337,67711.0,67710.0,0.147688]
[1729847143304,0.170337,67711.0,67710.0,0.00468368]
[1729847143548,0.170337,67711.0,67707.0,0.01]
[1729847143549,0.168337,67711.0,67705.0,0.300395]
[1729847143791,0.20795168,67706.0,67705.0,0.152699]
[1729847144013,0.27837584,67706.0,67705.0,0.152699]
[1729847144247,0.27837584,67706.0,67705.0,0.005]
[1729847144497,0.27837584,67706.0,67705.0,0.15738268]
[1729847144763,0.27837584,67706.0,67705.0,0.00468368]
[1729847145060,0.27837584,67706.0,67705.0,0.147699]
[1729847145535,0.1,67702.0,67696.0,0.005]
[1729847145794,0.1,67702.0,67694.0,0.005]
[1729847145795,0.10397584,67697.0,67694.0,0.005]
[1729847146022,0.10397584,67697.0,67694.0,0.152723]
[1729847146281,0.1716,67696.0,67694.0,0.005]
[1729847146509,0.1716,67696.0,67694.0,0.152722]
[1729847146749,0.1716,67696.0,67695.0,0.147721]
[1729847147900,0.1716,67696.0,67694.0,0.005]
[1729847148118,0.1716,67696.0,67694.0,0.152722]
[1729847148636,0.1716,67696.0,67691.0,0.005]
[1729847148878,0.10397584,67692.0,67691.0,0.005]
[1729847149809,0.10397584,67692.0,67688.0,0.152736]
[1729847150044,0.10397584,67689.0,67688.0,0.152736]
[1729847150977,0.10397584,67689.0,67688.0,0.147736]
[1729847151458,0.22144961,67695.0,67694.0,0.001648]
[1729847151690,0.32542545,67695.0,67694.0,0.001648]
[1729847152132,0.10397584,67695.0,67694.0,0.001648]
[1729847152358,0.1716,67696.0,67694.0,0.001648]
[1729847152582,0.10397584,67695.0,67694.0,0.001648]
[1729847153043,0.1716,67696.0,67694.0,0.001648]
[1729847153267,0.10397584,67695.0,67694.0,0.001648]
[1729847153926,0.0793,67696.0,67695.0,0.147721]
[1729847153927,0.10397584,67696.0,67695.0,0.147721]
[1729847154454,0.08,67700.0,67695.0,0.295442]
[1729847154683,0.10397584,67697.0,67696.0,0.147719]
[1729847154903,0.08,67700.0,67695.0,0.295442]
[1729847155128,0.10397584,67697.0,67696.0,0.443157]
[1729847155599,0.10397584,67697.0,67696.0,0.147719]
[1729847157613,0.10397584,67697.0,67694.0,0.006648]
[1729847157839,0.10397584,67697.0,67696.0,0.147719]
[1729847159038,0.10397584,67697.0,67694.0,0.006648]
[1729847159257,0.10397584,67697.0,67696.0,0.147719]
[1729847159700,0.10397584,67697.0,67694.0,0.154371]
[1729847159936,0.10397584,67697.0,67694.0,0.006648]
[1729847160182,0.10397584,67695.0,67694.0,0.001648]
[1729847160420,0.17987584,67695.0,67694.0,0.001648]
[1729847161133,0.223621,67695.0,67694.0,0.001648]
[1729847161357,0.47810065,67695.0,67694.0,0.001648]
[1729847161614,0.56920065,67695.0,67694.0,0.001648]
[1729847166432,0.46522481,67695.0,67694.0,0.001648]
[1729847166679,0.67317649,67695.0,67694.0,0.001648]
[1729847167144,0.52545549,67695.0,67694.0,0.001648]
[1729847167374,0.67317649,67695.0,67694.0,0.001648]
[1729847168095,0.42147965,67695.0,67694.0,0.001648]
[1729847168354,0.52545549,67695.0,67694.0,0.001648]
[1729847168806,0.67317649,67695.0,67694.0,0.001648]
[1729847169048,0.67349281,67695.0,67694.0,0.001648]
[1729847172433,0.61656815,67695.0,67694.0,0.001648]
[1729847172668,0.46554113,67695.0,67694.0,0.001648]
[1729847172902,0.61656815,67695.0,67694.0,0.001648]
[1729847173357,0.46554113,67695.0,67694.0,0.001648]
[1729847173610,0.61656815,67695.0,67694.0,0.001648]
[1729847175019,0.46554113,67695.0,67694.0,0.001648]
[1729847175262,0.61656815,67695.0,67694.0,0.001648]
[1729847175747,0.46554113,67695.0,67694.0,0.001648]
[1729847175986,0.61656815,67695.0,67694.0,0.001648]
[1729847176515,0.46554113,67695.0,67694.0,0.001648]
[1729847176765,0.61656815,67695.0,67694.0,0.001648]
[1729847179539,0.71656815,67695.0,67694.0,0.001648]
[1729847180443,0.76267798,67695.0,67694.0,0.001648]
[1729847183467,0.76467798,67695.0,67694.0,0.001648]
[1729847183686,0.44979904,67684.0,67683.0,0.001646]
[1729847183953,0.76810285,67684.0,67683.0,0.001646]
[1729847184790,0.76841917,67684.0,67683.0,0.001646]
[1729847186822,0.78536532,67684.0,67683.0,0.001646]
[1729847187882,0.22812013,67684.0,67683.0,0.001646]
[1729847188097,0.30184715,67684.0,67683.0,0.001646]
[1729847190935,0.30153083,67684.0,67683.0,0.001646]
[1729847191643,0.4937668,67684.0,67683.0,0.001646]
[1729847192068,0.3460218,67684.0,67683.0,0.001646]
[1729847192287,0.30184715,67684.0,67683.0,0.001646]
[1729847192507,0.25490405,67684.0,67683.0,0.001646]
[1729847193168,0.25458773,67684.0,67683.0,0.001646]
[1729847193627,0.40264905,67684.0,67683.0,0.001646]
[1729847194095,0.25490405,67684.0,67683.0,0.001646]
[1729847194521,0.25458773,67684.0,67683.0,0.149393]
[1729847194736,0.25458773,67684.0,67683.0,0.001646]
[1729847195192,0.44798773,67684.0,67683.0,0.001646]
[1729847195407,0.59573273,67684.0,67683.0,0.001646]
[1729847195622,0.69981665,67684.0,67683.0,0.001646]
[1729847195865,0.63995416,67684.0,67683.0,0.001646]
[1729847196075,0.74403808,67684.0,67683.0,0.001646]
[1729847196570,0.86747935,67684.0,67683.0,0.001646]
[1729847196838,0.86779567,67684.0,67683.0,0.001646]
[1729847197271,0.94329567,67684.0,67683.0,0.001646]
[1729847197501,0.94529567,67684.0,67683.0,0.001646]
[1729847197724,0.94329567,67684.0,67683.0,0.001646]
[1729847199305,0.8198544,67684.0,67683.0,0.001646]
[1729847200002,0.51828656,67684.0,67683.0,0.001646]
[1729847200233,0.39880916,67684.0,67683.0,0.001646]
[1729847203555,0.25050381,67684.0,67683.0,0.001646]
[1729847203796,0.00031632,67690.0,67683.0,0.001646]
[1729847203797,0.04422143,67688.0,67687.0,0.147738]
[1729847204031,0.06633215,67690.0,67689.0,0.147734]
[1729847204032,0.10408392,67690.0,67689.0,0.147734]
[1729847204256,0.04422143,67690.0,67689.0,0.147734]
[1729847204497,0.06633215,67692.0,67690.0,0.005]
[1729847204498,0.10408392,67692.0,67690.0,0.005]
[1729847204749,0.06633215,67695.0,67694.0,0.147723]
[1729847204750,0.04423235,67695.0,67694.0,0.147723]
[1729847204974,0.11055358,67700.0,67690.0,0.30014368]
[1729847204975,0.04454867,67702.0,67700.0,0.14771]
[1729847205237,0.11055358,67707.0,67700.0,0.14771]
[1729847205238,0.32553353,67701.0,67700.0,0.14771]
[1729847205449,0.32553353,67701.0,67698.0,0.147714]
[1729847205667,0.10408392,67699.0,67698.0,0.147714]
[1729847205886,0.10408392,67699.0,67696.0,0.242118]
[1729847206099,0.10408392,67699.0,67697.0,0.147716]
[1729847206309,0.000824,67703.0,67699.0,0.147712]
[1729847206522,0.15095573,67698.0,67697.0,0.147715]
[1729847206745,0.15095573,67698.0,67697.0,0.229615]
[1729847207029,0.15095573,67698.0,67697.0,0.224617]
[1729847209513,0.000824,67703.0,67698.0,0.005]
[1729847209708,0.000824,67703.0,67702.0,0.147706]
[1729847209923,0.15177973,67703.0,67702.0,0.147706]
[1729847210129,0.15177973,67703.0,67698.0,0.005]
[1729847210130,0.15177973,67703.0,67700.0,0.147709]
[1729847212176,0.15177973,67703.0,67698.0,0.152713]
[1729847212403,0.15095573,67699.0,67698.0,0.152713]
[1729847214344,0.15095573,67699.0,67697.0,0.37233]
[1729847214345,0.000824,67703.0,67702.0,0.152706]
[1729847214556,0.15177973,67703.0,67702.0,0.152706]
[1729847214800,0.15177973,67703.0,67702.0,0.147706]
[1729847215016,0.15177973,67703.0,67702.0,0.152706]
[1729847217530,0.000824,67703.0,67702.0,0.16238968]
[1729847218178,0.15177973,67703.0,67702.0,0.16238968]
[1729847220946,0.15177973,67703.0,67702.0,0.15738968]
[1729847221177,0.15177973,67703.0,67702.0,0.16238968]
[1729847222108,0.15177973,67703.0,67698.0,0.00468368]
[1729847222109,0.295412,67702.0,67698.0,0.00468368]
[1729847222355,0.15095573,67699.0,67695.0,0.15272]
[1729847222665,0.15095573,67699.0,67698.0,0.15239768]
[1729847223392,0.15095573,67699.0,67695.0,0.005]
[1729847223628,0.15095573,67696.0,67695.0,0.147721]
[1729847223867,0.15095573,67696.0,67695.0,0.152721]
[1729847224317,0.15095573,67696.0,67695.0,0.005]
[1729847225222,0.15095573,67696.0,67695.0,0.152721]
[1729847227629,0.15132781,67703.0,67696.0,0.295436]
[1729847227890,0.22144961,67701.0,67700.0,0.15271]
[1729847228105,0.22144961,67701.0,67700.0,0.15732913]
[1729847228552,0.000824,67703.0,67702.0,0.147706]
[1729847229002,0.000824,67703.0,67702.0,0.15232471]
[1729847229245,0.000824,67703.0,67702.0,0.15732471]
[1729847230906,0.000824,67703.0,67702.0,0.15232471]
[1729847231327,0.000824,67703.0,67702.0,0.15732471]
[1729847232262,0.000824,67703.0,67702.0,0.152706]
[1729847232501,0.000824,67703.0,67702.0,0.23850839]
[1729847232775,0.000824,67703.0,67702.0,0.34389791]
[1729847233010,0.000837,67711.0,67710.0,0.147688]
[1729847233227,0.000837,67711.0,67710.0,0.15730671]
[1729847233446,0.00747984,67711.0,67710.0,0.16469584]
[1729847235804,0.00747984,67711.0,67710.0,0.152688]
[1729847236038,0.00747984,67711.0,67710.0,0.01200703]
[1729847236481,0.00747984,67711.0,67710.0,0.01700703]
[1729847236700,0.00747984,67711.0,67710.0,0.01200703]
[1729847236941,0.00747984,67711.0,67710.0,0.01200692]
[1729847237189,0.00747984,67711.0,67710.0,0.00461809]
[1729847239521,0.00747984,67711.0,67710.0,0.00461827]
[1729847240222,0.15516584,67711.0,67710.0,0.00461827]
[1729847240444,0.00747984,67711.0,67710.0,0.15230627]
[1729847240669,0.00747984,67711.0,67710.0,0.01200765]
[1729847241117,0.00747984,67711.0,67710.0,0.00461827]
[1729847242088,0.00747984,67711.0,67710.0,0.15730627]
[1729847242311,0.00747984,67711.0,67710.0,0.16469515]
[1729847242312,0.000837,67711.0,67710.0,0.16469515]
[1729847243022,0.00118554,67711.0,67710.0,0.16469515]
[1729847243477,0.00118554,67711.0,67710.0,0.16937883]
[1729847243948,0.000837,67711.0,67710.0,0.16937883]
[1729847244710,0.000837,67711.0,67710.0,0.34517883]
[1729847244953,0.000837,67711.0,67710.0,0.53468698]
[1729847245173,0.000837,67714.0,67710.0,0.53468698]
[1729847245174,0.000837,67714.0,67713.0,0.18536568]
[1729847245400,0.000837,67714.0,67713.0,0.20837717]
[1729847245631,0.000837,67714.0,67713.0,0.3821305]
[1729847245856,0.000837,67714.0,67713.0,0.37917717]
[1729847247456,0.000837,67714.0,67713.0,0.380668]
[1729847248147,0.51672261,67734.0,67722.0,0.147662]
[1729847248408,0.15095573,67724.0,67722.0,0.15966915]
[1729847248625,0.00754305,67723.0,67722.0,0.15966915]
[1729847250209,0.00754305,67723.0,67722.0,0.15966662]
[1729847257230,0.00754305,67723.0,67722.0,0.16466662]
[1729847257468,0.000837,67723.0,67722.0,0.16466662]
[1729847257705,0.000837,67723.0,67722.0,0.152662]
[1729847257960,0.15854598,67723.0,67722.0,0.16466662]
[1729847258181,0.15222156,67723.0,67722.0,0.16466662]
[1729847258630,0.15179273,67723.0,67722.0,0.16466662]
[1729847261234,0.15179273,67723.0,67722.0,0.152662]
[1729847261447,0.15179273,67723.0,67722.0,0.1646666]
[1729847261662,0.1586039,67723.0,67722.0,0.1646666]
[1729847261918,0.15222452,67723.0,67722.0,0.1646666]
[1729847262159,0.15179273,67723.0,67722.0,0.1646666]
[1729847263290,0.15179273,67723.0,67722.0,0.16935028]
[1729847264863,0.15179273,67723.0,67722.0,0.152662]
[1729847265086,0.1586039,67723.0,67722.0,0.1646666]
[1729847268278,0.00764817,67723.0,67722.0,0.15727915]
[1729847268502,0.000837,67723.0,67722.0,0.16466657]
[1729847271260,0.000837,67723.0,67722.0,0.17390086]
[1729847271479,0.000837,67723.0,67722.0,0.16466657]
[1729847272392,0.10477419,67723.0,67722.0,0.16466657]
[1729847272623,0.10477419,67723.0,67722.0,0.17390087]
[1729847278102,0.11161107,67723.0,67722.0,0.17390087]
[1729847278333,0.10477419,67723.0,67722.0,0.17390087]
[1729847279688,0.000837,67723.0,67722.0,0.17390087]
[1729847279908,0.10477419,67723.0,67722.0,0.17390087]
[1729847280129,0.10477419,67723.0,67722.0,0.152662]
[1729847281277,0.000837,67723.0,67722.0,0.152662]
[1729847281506,0.10477419,67723.0,67722.0,0.152662]
[1729847282187,0.10393719,67723.0,67722.0,0.152662]
[1729847285271,0.0015,67730.0,67729.0,0.147647]
[1729847285490,0.0015,67730.0,67727.0,0.14765]
[1729847285732,0.10393719,67728.0,67727.0,0.14765]
[1729847286199,0.11033237,67728.0,67727.0,0.14765]
[1729847286648,0.11033237,67728.0,67724.0,0.295313]
[1729847286882,0.00639518,67728.0,67727.0,0.147651]
[1729847287360,0.00195052,67730.0,67727.0,0.147651]
[1729847287585,0.00642287,67728.0,67727.0,0.147651]
[1729847287794,0.00195052,67730.0,67727.0,0.147651]
[1729847288012,0.11036006,67728.0,67727.0,0.147651]
[1729847288280,0.10393719,67728.0,67727.0,0.147651]
[1729847288488,0.110363,67728.0,67727.0,0.147651]
[1729847289358,0.11080774,67728.0,67727.0,0.147651]
[1729847290684,0.15501593,67728.0,67727.0,0.147651]
[1729847291333,0.15512932,67728.0,67727.0,0.147651]
[1729847293853,0.15512932,67728.0,67727.0,0.15965554]
[1729847295055,0.11080774,67728.0,67727.0,0.15965554]
[1729847297575,0.00687055,67728.0,67727.0,0.15965554]
[1729847299113,0.22144961,67739.0,67738.0,0.34656487]
[1729847299325,0.3253868,67739.0,67738.0,0.15963153]
[1729847299550,0.10393719,67739.0,67738.0,0.01200453]
[1729847300013,0.10393719,67739.0,67738.0,0.00461713]
[1729847300454,0.50600319,67739.0,67738.0,0.00461713]
[1729847300752,0.60831951,67739.0,67738.0,0.00461713]
[1729847300951,0.60831951,67739.0,67722.0,0.001648]
[1729847300952,0.1739,67728.0,67723.0,0.005]
[1729847301164,0.10393719,67724.0,67723.0,0.005]
[1729847301376,0.10393719,67724.0,67723.0,0.1849017]
[1729847301614,0.10393719,67724.0,67723.0,0.00461649]
[1729847301615,0.20787438,67724.0,67723.0,0.00461649]
[1729847301837,0.10393719,67724.0,67723.0,0.00461649]
[1729847302515,0.15085304,67724.0,67722.0,0.001648]
[1729847303153,0.15085304,67724.0,67722.0,0.14931]
[1729847303382,0.15085304,67724.0,67722.0,0.001648]
[1729847303609,0.15085304,67723.0,67722.0,0.149309]
[1729847303830,0.15085304,67723.0,67722.0,0.001648]
[1729847304269,0.29851304,67723.0,67722.0,0.001648]
[1729847304499,0.67658621,67723.0,67722.0,0.001648]
[1729847304713,1.14390346,67723.0,67722.0,0.001648]
[1729847304938,1.01281597,67723.0,67722.0,0.001648]
[1729847305441,1.01280521,67723.0,67722.0,0.001648]
[1729847305667,0.92428069,67723.0,67722.0,0.001648]
[1729847305886,0.92228069,67723.0,67722.0,0.001648]
[1729847306568,0.99064131,67723.0,67722.0,0.001648]
[1729847306785,0.92428069,67723.0,67722.0,0.001648]
[1729847307016,1.05510638,67723.0,67722.0,0.001648]
[1729847307229,0.94243728,67723.0,67722.0,0.001648]
[1729847307870,0.92228069,67723.0,67722.0,0.001648]
[1729847308097,1.01073759,67723.0,67722.0,0.001648]
[1729847308607,0.92228069,67723.0,67722.0,0.001648]
[1729847308824,0.70903151,67723.0,67722.0,0.001648]
[1729847309074,0.72533317,67723.0,67722.0,0.001648]
[1729847309531,0.62573317,67723.0,67722.0,0.001648]
[1729847309759,0.54901685,67723.0,67722.0,0.001648]
[1729847309982,0.40135685,67723.0,67722.0,0.001648]
[1729847310244,0.30135685,67723.0,67722.0,0.001648]
[1729847310886,0.0828,67727.0,67722.0,0.001648]
[1729847311114,0.15085304,67724.0,67723.0,0.14766]
[1729847311792,0.000824,67728.0,67723.0,0.295317]